[Event "Walton Rating Tournament 2023"]
[Site "Dhaka"]
[Date "2024.01.03"]
[Round "7.6"]
[White "Anata, Choudhury"]
[Black "Sajidul, Haque"]
[Result "1/2-1/2"]
[ECO "B15"]
[WhiteElo "2196"]
[BlackElo "1875"]
[Annotator "ChessBase"]
[PlyCount "49"]
[EventDate "2023.12.30"]
[EventType "swiss"]
[EventCountry "BAN"]
[SourceTitle "playchess.com"]
[Source "ChessBase"]
[SourceQuality "1"]
[TimeControl "5400+30"]

1. e4 {[%emt 0:11:35]} c6 {[%emt 0:03:40]} 2. d4 {[%emt 0:00:22]} d5 {[%emt 0:00:04]} 3. Nd2 {[%emt 0:00:07]} dxe4 {[%emt 0:00:44]} 4. Nxe4 {[%emt 0:00:14]} Nf6 {[%emt 0:00:11]} 5. Nxf6+ {[%emt 0:00:08]} exf6 {[%emt 0:00:07]} 6. c3 {[%emt 0:00:12]} Bd6 {[%emt 0:00:08]} 7. Bd3 {[%emt 0:00:13]} O-O {[%emt 0:00:15]} 8. Qc2 {[%emt 0:00:09]} Re8+ {[%emt 0:00:30]} 9. Ne2 {[%emt 0:00:09]} h5 {[%emt 0:00:03]} 10. O-O {[%emt 0:00:31]} h4 {[%emt 0:00:16]} 11. h3 {[%emt 0:00:06]} Nd7 {[%emt 0:00:04]} 12. Bf4 {[%emt 0:01:23]} Nf8 {[%emt 0:01:09]} 13. Bxd6 {[%emt 0:01:52]} Qxd6 {[%emt 0:00:02]} 14. Rfe1 {[%emt 0:03:13]} b6 {[%emt 0:05:18]} 15. Qd2 {[%emt 0:04:32]} Bb7 {[%emt 0:03:03]} 16. Qf4 {[%emt 0:00:43]} Qxf4 {[%emt 0:00:42]} 17. Nxf4 {[%emt 0:00:11]} Rad8 {[%emt 0:06:00]} 18. Bc4 {[%emt 0:08:10]} Bc8 {[%emt 0:05:00]} 19. Kf1 {[%emt 0:03:59]} Ne6 {[%emt 0:11:20]} 20. Nxe6 {[%emt 0:01:17]} Bxe6 {[%emt 0:04:06]} 21. Bxe6 {[%emt 0:01:27]} fxe6 {[%emt 0:07:48]} 22. Re4 {[%emt 0:27:50]} g5 {[%emt 0:01:25]} 23. Rae1 {[%emt 0:00:25]} Kf7 {[%emt 0:00:09]} 24. R1e3 {[%emt 0:00:53]} Rd5 {[%emt 0:12:27]} 25. Ke2 {[%emt 0:00:51]} 1/2-1/2

[Event "Walton Rating Tournament 2023"]
[Site "Dhaka"]
[Date "2024.01.04"]
[Round "8.1"]
[White "Manon, Reja Neer"]
[Black "Zia, Tahsin Tajwar"]
[Result "1-0"]
[ECO "B01"]
[WhiteElo "2243"]
[BlackElo "2303"]
[Annotator "RC"]
[PlyCount "81"]
[EventDate "2023.12.30"]
[EventType "swiss"]
[EventCountry "BAN"]
[SourceTitle "playchess.com"]
[Source "ChessBase"]
[SourceQuality "1"]
[TimeControl "5400+30"]

1. e4 {[%emt 0:00:04]} d5 {[%emt 0:01:59]} 2. exd5 {[%emt 0:00:34]} Qxd5 {[%emt 0:00:06]} 3. d4 {[%emt 0:00:56]} Nc6 {[%emt 0:02:28]} 4. Nf3 {[%emt 0:00:41]} e5 {[%emt 0:09:17]} 5. Nc3 {[%emt 0:09:58]} Bb4 {[%emt 0:02:17]} 6. Bd2 {[%emt 0:00:15]} Bxc3 {[%emt 0:05:35]} 7. Bxc3 {[%emt 0:00:05]} e4 {[%emt 0:03:35]} 8. Ne5 {[%emt 0:06:48]} Nxe5 {[%emt 0:01:10]} 9. dxe5 {[%emt 0:00:03]} Be6 {[%emt 0:01:48]} 10. Qxd5 {[%emt 0:00:50]} Bxd5 {[%emt 0:00:02]} 11. O-O-O {[%emt 0:00:03]} O-O-O {[%emt 0:02:32]} 12. Rxd5 {[%emt 0:06:47]} Rxd5 {[%emt 0:00:09]} 13. Bc4 {[%emt 0:00:01]} Rd8 {[%emt 0:16:58]} 14. Bxf7 {[%emt 0:00:19]} Nh6 {[%emt 0:00:37]} 15. Bb3 {[%emt 0:18:31]} Rhe8 {[%emt 0:12:07]} 16. Re1 {[%emt 0:02:44]} Ng4 {[%emt 0:06:03]} 17. Bf7 {[%emt 0:01:26]} Re7 {[%emt 0:01:40]} 18. e6 {[%emt 0:00:09]} Rd6 {[%emt 0:10:24]} 19. Rxe4 {[%emt 0:11:49]} Nxf2 {[%emt 0:04:19]} 20. Re1 {[%emt 0:00:52]} Rd5 {[%emt 0:00:44]} 21. Bxg7 {[%emt 0:08:39]} Rf5 {[%emt 0:02:07]} 22. h3 {[%emt 0:07:53]} h5 {[%emt 0:02:03]} 23. Kd2 {[%emt 0:00:58]} Kd8 {[%emt 0:03:40]} 24. b4 {[%emt 0:07:24]} b6 {[%emt 0:00:45]} 25. a4 {[%emt 0:01:30]} c6 {[%emt 0:01:06]} 26. c4 {[%emt 0:01:38]} h4 {[%emt 0:01:15]} 27. Bf8 {[%emt 0:04:03]} Rf4 {[%emt 0:04:20]} 28. Bxe7+ {[%emt 0:03:45]} Kxe7 {[%emt 0:00:01]} 29. Ke3 {[%emt 0:00:32]} Rf5 {[%emt 0:00:17]} 30. a5 {[%emt 0:00:41]} c5 {[%emt 0:01:54]} 31. axb6 {[%emt 0:00:29]} axb6 {[%emt 0:00:01]} 32. b5 {[%emt 0:00:39]} Kd6 {[%emt 0:00:20]} 33. Ra1 {[%emt 0:00:17]} Ke7 {[%emt 0:00:05]} 34. Ra7+ {[%emt 0:01:36]} Kf6 {[%emt 0:00:01]} 35. Ra1 {[%emt 0:01:28]} Ke7 {[%emt 0:00:12]} 36. Bg8 {[%emt 0:00:14]} Kd6 {[%emt 0:02:35]} 37. Ra7 {[%emt 0:00:21]} Rf8 {[%emt 0:03:09]} 38. Rd7+ {[%emt 0:00:10]} Ke5 {[%emt 0:00:04]} 39. e7 {[%emt 0:00:20]} Rxg8 {[%emt 0:00:06]} 40. Rd8 {[%emt 0:00:14]} Nd1+ {[%emt 0:00:05]} 41. Kd2 {[%emt 0:05:14]} 1-0

[Event "Walton Rating Tournament 2023"]
[Site "Dhaka"]
[Date "2024.01.04"]
[Round "8.2"]
[White "Subrota, Biswas"]
[Black "Ahmed, Sheikh Nasir"]
[Result "0-1"]
[ECO "B48"]
[WhiteElo "2223"]
[BlackElo "2193"]
[Annotator "RC"]
[PlyCount "42"]
[EventDate "2023.12.30"]
[EventType "swiss"]
[EventCountry "BAN"]
[SourceTitle "playchess.com"]
[Source "ChessBase"]
[SourceQuality "1"]
[TimeControl "5400+30"]

1. e4 {[%emt 0:23:55]} c5 {[%emt 0:00:15]} 2. Nf3 {[%emt 0:00:03]} e6 {[%emt 0:00:15]} 3. d4 {[%emt 0:00:02]} cxd4 {[%emt 0:00:09]} 4. Nxd4 {[%emt 0:00:02]} Nc6 {[%emt 0:00:52]} 5. Nc3 {[%emt 0:00:14]} Qc7 {[%emt 0:02:09]} 6. Be3 {[%emt 0:00:03]} a6 {[%emt 0:00:26]} 7. g4 {[%emt 0:00:01]} b5 {[%emt 0:06:38]} 8. Nxc6 {[%emt 0:00:07]} dxc6 {[%emt 0:00:24]} 9. Qf3 {[%emt 0:00:02]} Bd6 {[%emt 0:05:11]} 10. g5 {[%emt 0:04:19]} Bb7 {[%emt 0:05:22]} 11. O-O-O {[%emt 0:00:38]} Be5 {[%emt 0:09:44]} 12. Bc5 {[%emt 0:05:45]} Ne7 {[%emt 0:01:34]} 13. h4 {[%emt 0:03:20]} O-O {[%emt 0:02:26]} 14. Bh3 {[%emt 0:13:06]} Rfd8 {[%emt 0:09:05]} 15. Rdg1 {[%emt 0:07:22]} Bd4 {[%emt 0:13:18]} 16. Bxd4 {[%emt 0:02:45]} Rxd4 {[%emt 0:00:02]} 17. h5 {[%emt 0:03:32]} Qe5 {[%emt 0:02:13]} 18. Rg4 {[%emt 0:03:29]} c5 {[%emt 0:02:04]} 19. Bg2 {[%emt 0:02:31]} Rad8 {[%emt 0:03:19]} 20. Qe3 {[%emt 0:04:34]} Qd6 {[%emt 0:10:37]} 21. Ne2 {[%emt 0:00:29]} Rd1+ {[%emt 0:03:20]} 0-1

[Event "Walton Rating Tournament 2023"]
[Site "Dhaka"]
[Date "2024.01.04"]
[Round "8.3"]
[White "abzid, Rahman"]
[Black "Rahman, Ziaur"]
[Result "0-1"]
[ECO "E13"]
[WhiteElo "2004"]
[BlackElo "2436"]
[Annotator "RC"]
[PlyCount "100"]
[EventDate "2023.12.30"]
[EventType "swiss"]
[EventCountry "BAN"]
[SourceTitle "playchess.com"]
[Source "ChessBase"]
[SourceQuality "1"]
[TimeControl "5400+30"]

1. d4 {[%emt 0:00:07]} Nf6 {[%emt 0:00:46]} 2. c4 {[%emt 0:00:17]} e6 {[%emt 0:01:29]} 3. Nc3 {[%emt 0:00:31]} Bb4 {[%emt 0:00:05]} 4. Nf3 {[%emt 0:00:28]} b6 {[%emt 0:03:32]} 5. Bg5 {[%emt 0:03:04]} Bb7 {[%emt 0:00:43]} 6. e3 {[%emt 0:00:14]} h6 {[%emt 0:00:38]} 7. Bh4 {[%emt 0:07:22]} g5 {[%emt 0:02:02]} 8. Bg3 {[%emt 0:00:16]} Ne4 {[%emt 0:00:06]} 9. Qc2 {[%emt 0:02:18]} h5 {[%emt 0:09:46]} 10. Bd3 {[%emt 0:12:02]} Bxc3+ {[%emt 0:10:01]} 11. bxc3 {[%emt 0:00:35]} Nxg3 {[%emt 0:00:06]} 12. hxg3 {[%emt 0:00:18]} Nc6 {[%emt 0:00:51]} 13. Bg6 {[%emt 0:07:14]} Qf6 {[%emt 0:16:22]} 14. Be4 {[%emt 0:01:47]} O-O-O {[%emt 0:02:11]} 15. Rb1 {[%emt 0:01:10]} d5 {[%emt 0:03:56]} 16. cxd5 {[%emt 0:00:52]} exd5 {[%emt 0:00:06]} 17. Bd3 {[%emt 0:03:18]} h4 {[%emt 0:00:08]} 18. gxh4 {[%emt 0:01:35]} gxh4 {[%emt 0:00:03]} 19. Qe2 {[%emt 0:00:18]} Kb8 {[%emt 0:01:59]} 20. Bb5 {[%emt 0:09:07]} Bc8 {[%emt 0:05:24]} 21. Rxh4 {[%emt 0:06:36]} Rxh4 {[%emt 0:01:51]} 22. Nxh4 {[%emt 0:00:07]} Qxh4 {[%emt 0:01:02]} 23. Bxc6 {[%emt 0:00:23]} Rd6 {[%emt 0:01:31]} 24. Bb5 {[%emt 0:01:36]} Qe4 {[%emt 0:01:22]} 25. Bd3 {[%emt 0:02:17]} Qxg2 {[%emt 0:00:07]} 26. Kd2 {[%emt 0:00:49]} Rh6 {[%emt 0:02:57]} 27. Qf1 {[%emt 0:04:19]} Qf3 {[%emt 0:01:50]} 28. Be2 {[%emt 0:06:18]} Qe4 {[%emt 0:01:58]} 29. Bd3 {[%emt 0:01:11]} Qe7 {[%emt 0:01:24]} 30. Qg2 {[%emt 0:01:45]} Rd6 {[%emt 0:03:40]} 31. Rb5 {[%emt 0:06:00]} Be6 {[%emt 0:02:10]} 32. Qg3 {[%emt 0:02:08]} Rd8 {[%emt 0:00:48]} 33. Rb3 {[%emt 0:00:58]} Kb7 {[%emt 0:00:42]} 34. Qf3 {[%emt 0:01:55]} Qd7 {[%emt 0:01:27]} 35. Bb5 {[%emt 0:02:39]} Qd6 {[%emt 0:00:38]} 36. Bd3 {[%emt 0:07:36]} a5 {[%emt 0:01:12]} 37. c4 {[%emt 0:01:04]} Qc6 {[%emt 0:08:41]} 38. c5 {[%emt 0:00:22]} Qa4 {[%emt 0:00:39]} 39. Qf6 {[%emt 0:01:43]} Qxa2+ {[%emt 0:00:56]} 40. Bc2 {[%emt 0:00:40]} Re8 {[%emt 0:01:36]} 41. f4 {[%emt 0:00:16]} Rg8 {[%emt 0:06:55]} 42. Kc3 {[%emt 0:01:01]} Qa1+ {[%emt 0:02:27]} 43. Rb2 {[%emt 0:00:36]} Qe1+ {[%emt 0:00:20]} 44. Kb3 {[%emt 0:01:24]} a4+ {[%emt 0:03:21]} 45. Ka2 {[%emt 0:00:39]} a3 {[%emt 0:00:01]} 46. Rxb6+ {[%emt 0:04:47]} cxb6 {[%emt 0:00:05]} 47. Qe7+ {[%emt 0:00:09]} Ka8 {[%emt 0:00:44]} 48. cxb6 {[%emt 0:01:30]} Qa5 {[%emt 0:00:03]} 49. Qc7 {[%emt 0:00:36]} Qa6 {[%emt 0:00:12]} 50. Ba4 {[%emt 0:00:40]} Qc4+ {[%emt 0:01:42]} 0-1

[Event "Walton Rating Tournament 2023"]
[Site "Dhaka"]
[Date "2024.01.04"]
[Round "8.4"]
[White "Rahman, Syed Mahfuzur"]
[Black "Mohammad Minhaz Uddin"]
[Result "0-1"]
[ECO "A46"]
[WhiteElo "2088"]
[BlackElo "2221"]
[Annotator "RC"]
[PlyCount "118"]
[EventDate "2023.12.30"]
[EventType "swiss"]
[EventCountry "BAN"]
[SourceTitle "playchess.com"]
[Source "ChessBase"]
[SourceQuality "1"]
[TimeControl "5400+30"]

1. d4 {[%emt 0:00:22]} Nf6 {[%emt 0:00:02]} 2. Nf3 {[%emt 0:00:57]} e6 {[%emt 0:00:15]} 3. g3 {[%emt 0:00:10]} b5 {[%emt 0:00:14]} 4. Bg2 {[%emt 0:00:10]} Bb7 {[%emt 0:00:01]} 5. a4 {[%emt 0:03:46]} b4 {[%emt 0:00:02]} 6. c4 {[%emt 0:00:03]} c5 {[%emt 0:01:08]} 7. O-O {[%emt 0:01:28]} Qc8 {[%emt 0:08:13]} 8. b3 {[%emt 0:18:54]} Be7 {[%emt 0:03:38]} 9. Bb2 {[%emt 0:06:48]} O-O {[%emt 0:00:06]} 10. Nbd2 {[%emt 0:00:24]} cxd4 {[%emt 0:02:01]} 11. Rc1 {[%emt 0:06:27]} Na6 {[%emt 0:00:54]} 12. Bxd4 {[%emt 0:10:38]} d6 {[%emt 0:01:36]} 13. Qc2 {[%emt 0:08:01]} e5 {[%emt 0:01:07]} 14. Ba1 {[%emt 0:01:27]} Nc5 {[%emt 0:00:30]} 15. Rfe1 {[%emt 0:02:19]} Nfe4 {[%emt 0:06:23]} 16. Nf1 {[%emt 0:02:09]} f5 {[%emt 0:00:52]} 17. N3d2 {[%emt 0:07:12]} h5 {[%emt 0:27:29]} 18. Rcd1 {[%emt 0:03:07]} h4 {[%emt 0:00:43]} 19. Bb2 {[%emt 0:04:14]} Qe8 {[%emt 0:12:38]} 20. Nxe4 {[%emt 0:09:12]} Bxe4 {[%emt 0:02:01]} 21. Bxe4 {[%emt 0:00:18]} fxe4 {[%emt 0:00:10]} 22. Bc1 {[%emt 0:02:51]} Qf7 {[%emt 0:07:19]} 23. Be3 {[%emt 0:00:21]} h3 {[%emt 0:01:59]} 24. Nd2 {[%emt 0:01:35]} Rac8 {[%emt 0:07:43]} 25. Nxe4 {[%emt 0:03:27]} Nxa4 {[%emt 0:06:30]} 26. Qd2 {[%emt 0:05:39]} Nc3 {[%emt 0:01:23]} 27. Nxc3 {[%emt 0:00:15]} bxc3 {[%emt 0:00:02]} 28. Qxc3 {[%emt 0:01:17]} Rb8 {[%emt 0:06:01]} 29. Bxa7 {[%emt 0:00:50]} Bg5 {[%emt 0:00:22]} 30. Be3 {[%emt 0:00:08]} Bxe3 {[%emt 0:00:05]} 31. Qxe3 {[%emt 0:00:13]} Rxb3 {[%emt 0:00:02]} 32. Rd3 {[%emt 0:00:47]} Rxd3 {[%emt 0:03:00]} 33. exd3 {[%emt 0:00:03]} Qb7 {[%emt 0:00:02]} 34. Qe4 {[%emt 0:00:29]} Qb2 {[%emt 0:01:16]} 35. Rf1 {[%emt 0:00:41]} Rf6 {[%emt 0:00:04]} 36. Qd5+ {[%emt 0:01:03]} Kh7 {[%emt 0:00:23]} 37. Qe4+ {[%emt 0:00:17]} Kg8 {[%emt 0:00:01]} 38. Qa8+ {[%emt 0:00:51]} Kf7 {[%emt 0:01:19]} 39. Qc8 {[%emt 0:00:35]} Qe2 {[%emt 0:01:08]} 40. Qxh3 {[%emt 0:00:24]} Qxd3 {[%emt 0:00:02]} 41. Qd7+ {[%emt 0:00:16]} Kg6 {[%emt 0:00:42]} 42. c5 {[%emt 0:00:42]} e4 {[%emt 0:00:47]} 43. Qg4+ {[%emt 0:00:32]} Kh6 {[%emt 0:00:56]} 44. Re1 {[%emt 0:00:33]} d5 {[%emt 0:00:21]} 45. h4 {[%emt 0:00:28]} Qd2 {[%emt 0:00:13]} 46. Rf1 {[%emt 0:00:13]} Rg6 {[%emt 0:01:02]} 47. Qf5 {[%emt 0:00:24]} Qc3 {[%emt 0:00:35]} 48. Qf4+ {[%emt 0:00:25]} Kh7 {[%emt 0:00:01]} 49. Rc1 {[%emt 0:00:11]} Qb2 {[%emt 0:01:03]} 50. Qe3 {[%emt 0:01:20]} d4 {[%emt 0:00:03]} 51. Qe1 {[%emt 0:00:30]} e3 {[%emt 0:00:01]} 52. Rd1 {[%emt 0:00:28]} Qb3 {[%emt 0:01:12]} 53. fxe3 {[%emt 0:00:30]} dxe3 {[%emt 0:00:02]} 54. Rd6 {[%emt 0:00:34]} Rg4 {[%emt 0:00:00]} 55. Rb6 {[%emt 0:00:13]} Qd3 {[%emt 0:01:06]} 56. Rb2 {[%emt 0:00:38]} Qd4 {[%emt 0:00:58]} 57. Rc2 {[%emt 0:00:29]} Qe5 {[%emt 0:00:27]} 58. Qb1 {[%emt 0:00:37]} g6 {[%emt 0:00:39]} 59. Re2 {[%emt 0:00:33]} Qxg3+ {[%emt 0:00:11]} 0-1

[Event "Walton Rating Tournament 2023"]
[Site "Dhaka"]
[Date "2024.01.04"]
[Round "8.5"]
[White "Swarnavo Choudhury"]
[Black "Sakline Mostafa, Sajid"]
[Result "0-1"]
[ECO "B21"]
[WhiteElo "2056"]
[BlackElo "2110"]
[Annotator "RC"]
[PlyCount "92"]
[EventDate "2023.12.30"]
[EventType "swiss"]
[EventCountry "BAN"]
[SourceTitle "playchess.com"]
[Source "ChessBase"]
[SourceQuality "1"]
[TimeControl "5400+30"]

1. e4 {[%emt 0:00:04]} c5 {[%emt 0:00:09]} 2. d4 {[%emt 0:00:03]} cxd4 {[%emt 0:00:11]} 3. c3 {[%emt 0:00:04]} dxc3 {[%emt 0:00:26]} 4. Nxc3 {[%emt 0:00:05]} e6 {[%emt 0:00:06]} 5. Nf3 {[%emt 0:00:04]} a6 {[%emt 0:00:13]} 6. Bc4 {[%emt 0:00:06]} b5 {[%emt 0:00:38]} 7. Bb3 {[%emt 0:00:11]} Bb7 {[%emt 0:00:13]} 8. Qe2 {[%emt 0:00:32]} Ne7 {[%emt 0:00:36]} 9. O-O {[%emt 0:00:08]} Ng6 {[%emt 0:00:13]} 10. Rd1 {[%emt 0:00:59]} Be7 {[%emt 0:00:25]} 11. Be3 {[%emt 0:00:22]} O-O {[%emt 0:06:56]} 12. Rac1 {[%emt 0:00:17]} Nc6 {[%emt 0:01:30]} 13. Rc2 {[%emt 0:10:15]} d6 {[%emt 0:14:10]} 14. Rcd2 {[%emt 0:00:56]} Qc7 {[%emt 0:01:13]} 15. h4 {[%emt 0:05:31]} Nxh4 {[%emt 0:16:24]} 16. Nxh4 {[%emt 0:02:40]} Bxh4 {[%emt 0:00:26]} 17. Rxd6 {[%emt 0:00:10]} Rad8 {[%emt 0:05:18]} 18. Bf4 {[%emt 0:05:03]} Qe7 {[%emt 0:13:27]} 19. Qh5 {[%emt 0:14:10]} b4 {[%emt 0:06:50]} 20. Na4 {[%emt 0:03:54]} e5 {[%emt 0:00:36]} 21. Rxd8 {[%emt 0:00:38]} Rxd8 {[%emt 0:00:17]} 22. Rxd8+ {[%emt 0:55:18]} Nxd8 {[%emt 0:02:24]} 23. Qxe5 {[%emt 0:00:00]} Qxe5 {[%emt 0:03:20]} 24. Bxe5 {[%emt 0:00:00]} Be7 {[%emt 0:07:20]} 25. f3 {[%emt 0:00:00]} Bc6 {[%emt 0:05:54]} 26. Bd4 {[%emt 0:00:00]} Nb7 {[%emt 0:00:37]} 27. Kf2 {[%emt 0:00:00]} Kf8 {[%emt 0:03:19]} 28. Ke3 {[%emt 0:00:00]} Na5 {[%emt 0:01:58]} 29. Nc5 {[%emt 0:00:00]} Bb5 {[%emt 0:01:53]} 30. Bd5 {[%emt 0:00:00]} Nc4+ {[%emt 0:00:45]} 31. Bxc4 {[%emt 0:00:00]} Bxc4 {[%emt 0:00:20]} 32. a3 {[%emt 0:00:00]} bxa3 {[%emt 0:01:29]} 33. bxa3 {[%emt 0:00:00]} f6 {[%emt 0:02:33]} 34. a4 {[%emt 0:00:00]} Ke8 {[%emt 0:00:58]} 35. f4 {[%emt 0:00:00]} h5 {[%emt 0:01:25]} 36. g3 {[%emt 0:00:00]} g6 {[%emt 0:01:23]} 37. f5 {[%emt 0:00:00]} Kf7 {[%emt 0:02:09]} 38. Nd3 {[%emt 0:00:00]} Bb3 {[%emt 0:00:39]} 39. fxg6+ {[%emt 0:00:52]} Kxg6 {[%emt 0:00:05]} 40. e5 {[%emt 0:00:36]} fxe5 {[%emt 0:00:39]} 41. Nxe5+ {[%emt 0:00:51]} Kf5 {[%emt 0:00:13]} 42. Nf3 {[%emt 0:06:37]} Bxa4 {[%emt 0:00:31]} 43. Bb6 {[%emt 0:00:49]} Bd6 {[%emt 0:00:21]} 44. Kf2 {[%emt 0:00:40]} Kg4 {[%emt 0:00:10]} 45. Nh2+ {[%emt 0:00:29]} Kh3 {[%emt 0:00:02]} 46. Kf3 {[%emt 0:00:31]} Bc6+ {[%emt 0:02:46]} 0-1

[Event "Walton Rating Tournament 2023"]
[Site "Dhaka"]
[Date "2024.01.04"]
[Round "8.6"]
[White "Hasan, Sk. Rashedul"]
[Black "Anata, Choudhury"]
[Result "0-1"]
[ECO "B23"]
[WhiteElo "1807"]
[BlackElo "2196"]
[Annotator "RC"]
[PlyCount "70"]
[EventDate "2023.12.30"]
[EventType "swiss"]
[EventCountry "BAN"]
[SourceTitle "playchess.com"]
[Source "ChessBase"]
[SourceQuality "1"]
[TimeControl "5400+30"]

1. e4 {[%emt 0:31:27]} c5 {[%emt 0:00:12]} 2. Nc3 {[%emt 0:00:06]} Nc6 {[%emt 0:00:19]} 3. f4 {[%emt 0:00:02]} g6 {[%emt 0:00:10]} 4. Nf3 {[%emt 0:00:03]} Bg7 {[%emt 0:00:08]} 5. Bb5 {[%emt 0:00:06]} Nd4 {[%emt 0:00:17]} 6. O-O {[%emt 0:00:03]} a6 {[%emt 0:00:14]} 7. Bc4 {[%emt 0:00:24]} e6 {[%emt 0:00:08]} 8. d3 {[%emt 0:02:34]} Ne7 {[%emt 0:00:10]} 9. Nxd4 {[%emt 0:00:11]} cxd4 {[%emt 0:00:14]} 10. Ne2 {[%emt 0:00:06]} d5 {[%emt 0:00:27]} 11. Bb3 {[%emt 0:00:13]} dxe4 {[%emt 0:00:21]} 12. dxe4 {[%emt 0:00:14]} Qb6 {[%emt 0:00:09]} 13. Kh1 {[%emt 0:00:51]} Bd7 {[%emt 0:00:12]} 14. Ng3 {[%emt 0:05:53]} h5 {[%emt 0:02:41]} 15. f5 {[%emt 0:10:03]} h4 {[%emt 0:01:10]} 16. fxe6 {[%emt 0:00:03]} Bxe6 {[%emt 0:00:09]} 17. Ne2 {[%emt 0:06:49]} h3 {[%emt 0:02:10]} 18. g3 {[%emt 0:00:14]} Bxb3 {[%emt 0:09:57]} 19. axb3 {[%emt 0:01:32]} Rc8 {[%emt 0:42:54]} 20. Ra4 {[%emt 0:09:57]} Qc6 {[%emt 0:14:29]} 21. Rxd4 {[%emt 0:02:57]} Bxd4 {[%emt 0:03:37]} 22. Qxd4 {[%emt 0:00:03]} Rh5 {[%emt 0:00:08]} 23. c4 {[%emt 0:03:47]} Rd8 {[%emt 0:00:32]} 24. Qe3 {[%emt 0:00:10]} f5 {[%emt 0:12:25]} 25. Nf4 {[%emt 0:00:21]} fxe4 {[%emt 0:01:15]} 26. Nxh5 {[%emt 0:00:05]} gxh5 {[%emt 0:00:05]} 27. Kg1 {[%emt 0:00:54]} Rd3 {[%emt 0:01:09]} 28. Qg5 {[%emt 0:00:50]} Qb6+ {[%emt 0:02:04]} 29. c5 {[%emt 0:00:15]} Qg6 {[%emt 0:00:35]} 30. Qe5 {[%emt 0:01:03]} Kd7 {[%emt 0:01:09]} 31. Bf4 {[%emt 0:07:49]} Qc6 {[%emt 0:00:35]} 32. Qxh5 {[%emt 0:00:19]} Qe6 {[%emt 0:02:01]} 33. Bd6 {[%emt 0:01:29]} e3 {[%emt 0:01:09]} 34. Bxe7 {[%emt 0:00:56]} e2 {[%emt 0:00:52]} 35. Bd6 {[%emt 0:03:02]} Qe3+ {[%emt 0:00:25]} 0-1

[Event "Walton Rating Tournament 2023"]
[Site "Dhaka"]
[Date "2024.01.05"]
[Round "9.1"]
[White "Rahman, Ziaur"]
[Black "Manon, Reja Neer"]
[Result "1-0"]
[ECO "D45"]
[WhiteElo "2436"]
[BlackElo "2243"]
[Annotator "RC"]
[PlyCount "95"]
[EventDate "2023.12.30"]
[EventType "swiss"]
[EventCountry "BAN"]
[SourceTitle "playchess.com"]
[Source "ChessBase"]
[SourceQuality "1"]
[TimeControl "5400+30"]

1. c4 {[%emt 0:01:03]} c6 {[%emt 0:09:39]} 2. Nf3 {[%emt 0:00:51]} d5 {[%emt 0:00:05]} 3. e3 {[%emt 0:00:48]} Nf6 {[%emt 0:00:17]} 4. Nc3 {[%emt 0:00:57]} e6 {[%emt 0:00:42]} 5. b3 {[%emt 0:00:30]} Nbd7 {[%emt 0:00:05]} 6. Bb2 {[%emt 0:00:09]} Bd6 {[%emt 0:00:07]} 7. d4 {[%emt 0:00:38]} O-O {[%emt 0:00:32]} 8. Be2 {[%emt 0:00:06]} b6 {[%emt 0:00:04]} 9. O-O {[%emt 0:00:03]} Bb7 {[%emt 0:00:03]} 10. Qc2 {[%emt 0:00:50]} Qe7 {[%emt 0:01:40]} 11. a4 {[%emt 0:00:37]} c5 {[%emt 0:34:55]} 12. a5 {[%emt 0:03:25]} cxd4 {[%emt 0:07:05]} 13. exd4 {[%emt 0:03:28]} e5 {[%emt 0:03:47]} 14. dxe5 {[%emt 0:14:02]} Nxe5 {[%emt 0:03:25]} 15. Nb5 {[%emt 0:01:34]} dxc4 {[%emt 0:05:07]} 16. Nxd6 {[%emt 0:01:15]} Nxf3+ {[%emt 0:00:13]} 17. Bxf3 {[%emt 0:00:54]} Bxf3 {[%emt 0:00:04]} 18. Nxc4 {[%emt 0:11:26]} Qe4 {[%emt 0:13:22]} 19. Qc3 {[%emt 0:02:26]} Be2 {[%emt 0:10:57]} 20. Rfe1 {[%emt 0:02:29]} Qd3 {[%emt 0:00:52]} 21. Qc1 {[%emt 0:02:08]} Bh5 {[%emt 0:02:00]} 22. Re3 {[%emt 0:02:45]} Qf5 {[%emt 0:02:03]} 23. Re5 {[%emt 0:05:12]} Qd3 {[%emt 0:00:01]} 24. Rg5 {[%emt 0:05:01]} Bg6 {[%emt 0:00:09]} 25. Rg3 {[%emt 0:01:38]} Qe2 {[%emt 0:01:38]} 26. Bxf6 {[%emt 0:01:34]} gxf6 {[%emt 0:00:00]} 27. h4 {[%emt 0:01:50]} b5 {[%emt 0:00:48]} 28. Ne3 {[%emt 0:02:27]} Rac8 {[%emt 0:00:52]} 29. Qa3 {[%emt 0:01:22]} Rfe8 {[%emt 0:02:07]} 30. Qd6 {[%emt 0:01:19]} Qb2 {[%emt 0:01:33]} 31. Rd1 {[%emt 0:01:03]} Qe5 {[%emt 0:00:48]} 32. Qxe5 {[%emt 0:04:34]} Rxe5 {[%emt 0:00:06]} 33. Ng4 {[%emt 0:00:06]} Rec5 {[%emt 0:01:06]} 34. Rd7 {[%emt 0:03:41]} f5 {[%emt 0:00:41]} 35. Nf6+ {[%emt 0:00:52]} Kg7 {[%emt 0:00:05]} 36. Nh5+ {[%emt 0:00:06]} Kh6 {[%emt 0:00:36]} 37. Nf4 {[%emt 0:00:02]} R8c7 {[%emt 0:00:27]} 38. Rxc7 {[%emt 0:04:13]} Rxc7 {[%emt 0:00:01]} 39. h5 {[%emt 0:00:06]} Bxh5 {[%emt 0:00:55]} 40. Rh3 {[%emt 0:00:01]} Kg5 {[%emt 0:00:01]} 41. Nxh5 {[%emt 0:00:08]} f4 {[%emt 0:00:26]} 42. g3 {[%emt 0:01:31]} f3 {[%emt 0:00:30]} 43. Nf4 {[%emt 0:00:11]} Rc1+ {[%emt 0:00:09]} 44. Kh2 {[%emt 0:00:02]} Rc2 {[%emt 0:00:22]} 45. Rh5+ {[%emt 0:00:27]} Kg4 {[%emt 0:00:20]} 46. Rh4+ {[%emt 0:00:05]} Kf5 {[%emt 0:00:11]} 47. Nh3 {[%emt 0:01:02]} Rc3 {[%emt 0:00:05]} 48. Rh5+ {[%emt 0:00:28]} 1-0